bitfinex-derivatives/quotes_SOLF0:USTF0_20250606
["timestamp","ask_amount","ask_price","bid_price","bid_amount"]
[1749194187780,11.60435607,147.4,147.34,4.82315607]
[1749194187977,33.62,147.41,147.36,4.82315607]
[1749194188276,38.44315607,147.42,147.36,4.82315607]
[1749194188680,0.04325506,147.4,147.38,0.0446985]
[1749194189779,0.04325506,147.4,147.38,6.8263985]
[1749194191476,0.04325506,147.4,147.38,0.0446985]
[1749194192672,6.82455506,147.4,147.38,0.0446985]
[1749194193778,0.04325506,147.4,147.38,0.0446985]
[1749194194479,0.04325506,147.4,147.39,6.7815]
[1749194198675,0.04325506,147.4,147.38,0.0446985]
[1749194198877,4.86641113,147.4,147.38,0.0446985]
[1749194199488,6.7815,147.39,147.38,0.0446985]
[1749194200883,6.783,147.36,147.33,2.1466]
[1749194201077,5.71517347,147.41,147.33,2.1466]
[1749194201078,4.82315607,147.37,147.33,2.1466]
[1749194201284,4.82315607,147.37,147.33,8.9304]
[1749194201580,4.82315607,147.37,147.33,2.1466]
[1749194201987,4.82315607,147.37,147.34,0.04680906]
[1749194201988,0.04866607,147.36,147.34,0.04680906]
[1749194202489,0.04866607,147.36,147.34,6.83060906]
[1749194202689,0.04866607,147.36,147.34,0.04680906]
[1749194203777,0.04866607,147.36,147.34,6.83060906]
[1749194204582,0.04866607,147.36,147.34,0.04680906]
[1749194205185,0.04866607,147.36,147.34,6.83060906]
[1749194205789,0.04866607,147.36,147.34,0.04680906]
[1749194206294,0.04866607,147.36,147.34,6.83060906]
[1749194206980,0.04866607,147.36,147.34,0.04680906]
[1749194209995,0.04866607,147.36,147.35,6.7834]
[1749194215096,33.62,147.41,147.38,6.782]
[1749194215297,33.62,147.41,147.35,4.82315607]
[1749194215497,33.62,147.41,147.39,6.7815]
[1749194215997,33.6690413,147.41,147.39,0.05176419]
[1749194218094,0.0490413,147.41,147.4,6.7811]
[1749194218392,356.0,147.54,147.39,4.87492026]
[1749194218393,33.62,147.47,147.39,4.87492026]
[1749194218598,5.73033617,147.46,147.41,4.82315607]
[1749194219294,0.04707938,147.45,147.42,0.04319621]
[1749194219802,0.04707938,147.45,147.43,6.7797]
[1749194220396,0.04707938,147.45,147.42,6.82319621]
[1749194221696,0.04707938,147.45,147.43,6.7796]
[1749194222999,0.04707938,147.45,147.42,6.82319621]
[1749194223995,4.82315607,147.44,147.42,0.04319621]
[1749194224495,6.82597938,147.45,147.42,0.04319621]
[1749194225099,0.04707938,147.45,147.42,0.04319621]
[1749194225499,6.7796,147.44,147.42,0.04319621]
[1749194227701,6.7797,147.43,147.42,0.04319621]
[1749194232308,4.82315607,147.44,147.42,0.04319621]
[1749194232599,0.04707938,147.45,147.42,0.04319621]
[1749194232797,6.7795,147.44,147.42,0.04319621]
[1749194234008,6.7797,147.43,147.42,0.04319621]
[1749194234411,40.3797,147.43,147.42,0.04319621]
[1749194234709,46.11250653,147.43,147.42,0.04319621]
[1749194234904,40.3797,147.43,147.42,0.04319621]
[1749194235210,43.78786492,147.43,147.4,0.52]
[1749194235408,4.82315607,147.42,147.4,0.52]
[1749194235707,6.7806,147.41,147.4,0.52]
[1749194236808,6.7811,147.4,147.39,0.04764923]
[1749194237011,11.60425607,147.4,147.39,0.04764923]
[1749194237505,6.7811,147.4,147.39,0.04764923]
[1749194237709,6.7808,147.41,147.39,0.04764923]
[1749194238009,10.60154171,147.42,147.39,0.04764923]
[1749194238613,6.7809,147.41,147.39,0.04764923]
[1749194241410,6.7811,147.4,147.39,0.04764923]
[1749194242413,6.7808,147.41,147.39,0.04764923]
[1749194242808,15.05192768,147.42,147.39,0.04764923]
[1749194243013,0.04779148,147.42,147.41,6.7806]
[1749194246417,0.04779148,147.42,147.4,6.7809]
[1749194251526,6.82799148,147.42,147.39,6.82904923]
[1749194251722,6.82799148,147.42,147.39,0.04764923]
[1749194252321,0.04779148,147.42,147.39,0.04764923]
[1749194252920,6.7806,147.41,147.39,0.04764923]
[1749194254928,0.04779148,147.42,147.39,0.04764923]
[1749194255125,0.04779148,147.42,147.41,4.82315607]
[1749194255329,0.04779148,147.42,147.41,11.60375607]
[1749194257136,8.43246777,147.51,147.41,11.60375607]
[1749194257137,13.82398,147.57,147.41,440.58135554]
[1749194257339,5.74459948,147.56,147.5,4.82067777]
[1749194257634,12.51879948,147.55,147.5,11.59677777]
[1749194257831,5.74459948,147.54,147.5,11.59677777]
[1749194258037,0.05067988,147.53,147.51,0.04782511]
[1749194259828,6.82577988,147.53,147.51,0.04782511]
[1749194263639,0.05067988,147.53,147.51,0.04782511]
[1749194264945,6.82607988,147.53,147.51,0.04782511]
[1749194265237,0.05067988,147.53,147.51,0.04782511]
[1749194265743,2.84912573,147.53,147.51,0.04782511]
[1749194266138,2.85410481,147.53,147.51,0.04782511]
[1749194266444,6.7755,147.52,147.51,0.04782511]
[1749194282060,6.7755,147.52,147.28,360.787]
[1749194282061,7.80481843,147.52,147.42,2.1563]
[1749194282261,4.82067777,147.46,147.4,35.8526]
[1749194282466,6.7795,147.44,147.4,42.6335]
[1749194282859,4.82067777,147.46,147.4,42.6335]
[1749194283055,4.86882835,147.44,147.42,0.04664173]
[1749194283359,4.86882835,147.44,147.37,38.40067777]
[1749194283559,4.86882835,147.44,147.37,33.58]
[1749194283760,33.58,147.43,147.37,33.58]
[1749194283961,33.58,147.43,147.37,40.3623]
[1749194284361,33.58,147.43,147.39,0.05047069]
[1749194284362,6.83251906,147.41,147.39,0.05047069]
[1749194286261,0.05171906,147.41,147.39,0.05047069]
[1749194287268,6.83241906,147.41,147.39,0.05047069]
[1749194287970,6.781,147.4,147.39,0.05047069]
[1749194288870,6.7821,147.38,147.35,2.2032]
[1749194289761,6.7821,147.38,147.35,2.25217153]
[1749194289962,6.82963579,147.38,147.35,2.25217153]
[1749194290571,0.04753579,147.38,147.35,2.25217153]
[1749194291669,0.04753579,147.38,147.35,9.03547153]
[1749194292367,0.04753579,147.38,147.35,2.25217153]
[1749194292570,6.82953579,147.38,147.35,2.25217153]
[1749194297073,0.04753579,147.38,147.35,9.03547153]
[1749194297773,0.04753579,147.38,147.36,6.7829]
[1749194298367,0.04753579,147.38,147.35,9.03537153]
[1749194299875,0.04753579,147.38,147.36,6.7829]
[1749194301579,0.04753579,147.38,147.35,9.03517153]
[1749194303172,0.04753579,147.38,147.36,6.7828]
[1749194304876,0.04753579,147.38,147.35,2.25217153]
[1749194304877,0.04753579,147.38,147.35,9.03537153]
[1749194305478,0.04753579,147.38,147.36,6.7828]
[1749194307584,0.04753579,147.38,147.35,9.03527153]
[1749194308878,0.04753579,147.38,147.36,6.7827]
[1749194313783,2.94308361,147.42,147.35,7.0728493]
[1749194313986,7.76400073,147.42,147.35,9.3020493]
[1749194314187,4.82067777,147.42,147.35,9.3020493]
[1749194314388,6.7807,147.41,147.35,9.3020493]
[1749194314780,0.04643176,147.39,147.35,4.48137153]
[1749194314981,0.04643176,147.39,147.38,6.782]
[1749194316887,0.04643176,147.39,147.37,6.7823]
[1749194321294,0.04643176,147.39,147.36,6.7826]
[1749194321689,0.04643176,147.39,147.35,9.3020493]
[1749194322091,0.04643176,147.39,147.38,6.782]
[1749194323588,0.04643176,147.39,147.37,6.7822]
[1749194323796,0.04643176,147.39,147.35,38.10137153]
[1749194323989,7.77629517,147.38,147.35,0.04897153]
[1749194324183,6.7829,147.36,147.35,0.04897153]
[1749194325694,6.7826,147.37,147.35,0.04897153]
[1749194325993,9.73753146,147.37,147.35,0.04897153]
[1749194326496,9.73755227,147.37,147.35,0.04897153]
[1749194326889,2.95495227,147.36,147.35,0.04897153]
[1749194327291,12.4293671,147.37,147.35,0.04897153]
[1749194327594,2.95888406,147.36,147.35,0.04897153]
[1749194327795,2.95889188,147.36,147.35,0.04897153]
[1749194327990,2.95889204,147.36,147.35,0.04897153]
[1749194328197,6.7826,147.37,147.35,0.04897153]
[1749194328490,12.43267272,147.37,147.35,0.04897153]
[1749194328695,2.95747781,147.36,147.35,0.04897153]
[1749194328997,2.95737752,147.36,147.35,0.04897153]
[1749194329192,2.95737277,147.36,147.35,0.04897153]
[1749194329398,33.66643176,147.39,147.35,0.04897153]
[1749194329697,2.95771542,147.38,147.35,0.04897153]
[1749194329896,33.66643176,147.39,147.35,0.04897153]
[1749194330092,2.95797212,147.38,147.35,0.04897153]
[1749194330293,33.66643176,147.39,147.35,0.04897153]
[1749194330492,2.95799009,147.38,147.35,0.04897153]
[1749194330690,33.66643176,147.39,147.35,0.04897153]
[1749194331093,0.04643176,147.39,147.35,0.04897153]
[1749194331294,0.04643176,147.39,147.36,4.82067777]
[1749194331600,0.04643176,147.39,147.38,6.782]
[1749194332397,0.04643176,147.39,147.36,4.5253]
[1749194332697,0.04643176,147.39,147.36,9.34597777]
[1749194332898,0.04643176,147.39,147.36,7.13577777]
[1749194333199,0.04643176,147.39,147.37,6.7821]
[1749194333598,0.04643176,147.39,147.36,7.13577777]
[1749194334097,0.04643176,147.39,147.38,6.782]
[1749194338904,0.04643176,147.39,147.38,11.60267777]
[1749194339103,33.62,147.45,147.41,6.7805]
[1749194339299,8.49497651,147.44,147.41,6.7805]
[1749194339497,8.49497651,147.43,147.41,6.7805]
[1749194339699,5.64301331,147.43,147.4,6.7809]
[1749194339904,2.85191155,147.42,147.4,6.7809]
[1749194340098,0.05137939,147.42,147.4,6.8251821]
[1749194340298,0.05137939,147.42,147.41,6.7806]
[1749194340698,2.90350489,147.42,147.41,6.7806]
[1749194341604,2.90199103,147.42,147.41,6.7806]
[1749194341801,2.90191946,147.42,147.41,6.7806]
[1749194342003,2.90191583,147.42,147.41,6.7806]
[1749194342199,0.05137939,147.42,147.41,6.7806]
[1749194342507,2.90491753,147.42,147.41,6.7806]
[1749194342701,2.90491753,147.42,147.4,6.8250821]
[1749194342904,0.05137939,147.42,147.4,6.8250821]
[1749194343403,0.05137939,147.42,147.4,0.0442821]
[1749194344909,0.05137939,147.42,147.4,6.8251821]
[1749194345606,0.05137939,147.42,147.41,6.7806]
[1749194346002,2.9054776,147.42,147.41,6.7806]
[1749194346503,2.90823759,147.42,147.41,6.7806]
[1749194346712,0.05137939,147.42,147.41,6.7806]
[1749194350603,35.9366,147.48,147.41,6.7806]
[1749194350604,5.64965527,147.47,147.45,6.7787]
[1749194350804,35.9366,147.48,147.45,6.7787]
[1749194351003,2.74738386,147.47,147.45,6.7787]
[1749194351208,35.9366,147.48,147.45,6.7787]
[1749194351404,33.62,147.48,147.44,4.82067777]
[1749194351599,0.04677034,147.47,147.45,0.05222539]
[1749194352109,0.04677034,147.47,147.46,6.7783]
[1749194352510,2.1171,147.53,147.46,4.82067777]
[1749194352711,2.74807484,147.52,147.49,6.7766]
[1749194352913,2.74810152,147.51,147.48,4.82067777]
[1749194353108,33.62,147.54,147.48,4.82067777]
[1749194353309,2.74865177,147.53,147.48,4.82067777]
[1749194353515,0.04383707,147.52,147.49,0.04962905]
[1749194353819,0.04383707,147.52,147.51,6.7757]
[1749194354111,0.04383707,147.52,147.49,0.04962905]
[1749194354315,0.04383707,147.52,147.5,6.7763]
[1749194355014,0.04383707,147.52,147.5,6.7764]
[1749194356612,0.04383707,147.52,147.49,6.82632905]
[1749194357118,0.04383707,147.52,147.49,0.04962905]
[1749194357321,6.81953707,147.52,147.49,0.04962905]
[1749194358113,0.04383707,147.52,147.49,0.04962905]
[1749194358314,4.86451484,147.52,147.49,0.04962905]
[1749194358715,6.776,147.51,147.49,0.04962905]
[1749194358919,4.86451484,147.52,147.49,0.04962905]
[1749194359814,6.7764,147.5,147.49,0.04962905]
[1749194360122,38.42067777,147.5,147.44,33.6]
[1749194360618,6.7774,147.48,147.44,40.379]
[1749194360820,38.42067777,147.5,147.44,33.6]
[1749194361223,0.04571731,147.48,147.46,0.05175366]
[1749194364124,6.82311731,147.48,147.46,0.05175366]
[1749194365125,6.7778,147.47,147.46,0.05175366]
[1749194368123,6.82321731,147.48,147.46,0.05175366]
[1749194372626,6.7778,147.47,147.46,0.05175366]
[1749194373827,6.82321731,147.48,147.46,0.05175366]
[1749194376926,4.86639508,147.48,147.38,4.82067777]
[1749194377126,4.82067777,147.46,147.38,4.82067777]
[1749194377332,6.7788,147.45,147.41,6.7802]
[1749194377829,6.7788,147.45,147.42,0.04568618]
[1749194377830,0.04372658,147.44,147.42,0.04568618]
[1749194378632,0.04372658,147.44,147.42,4.86636395]
[1749194379232,0.04372658,147.44,147.43,6.7797]
[1749194383438,0.04372658,147.44,147.42,6.82568618]
[1749194384334,0.04372658,147.44,147.42,0.04568618]
[1749194384533,4.86440435,147.44,147.42,0.04568618]
[1749194384734,4.86440435,147.44,147.38,33.6]
[1749194384938,4.82067777,147.42,147.38,6.7817]
[1749194385839,0.04454357,147.41,147.39,0.04359555]
[1749194387037,0.04454357,147.41,147.33,2.1784]
[1749194387038,4.82067777,147.4,147.33,2.1784]
[1749194387340,4.82067777,147.38,147.32,35.8208]
[1749194387534,4.82067777,147.4,147.33,4.82067777]
[1749194387937,38.42067777,147.41,147.33,4.82067777]
[1749194388237,0.04812611,147.38,147.36,0.04610847]
[1749194389642,0.04812611,147.38,147.37,6.7824]
[1749194390542,0.04812611,147.38,147.36,0.04610847]
[1749194391335,0.04812611,147.38,147.37,6.7824]
[1749194401541,4.82067777,147.43,147.37,4.82067777]
[1749194402646,0.04923577,147.41,147.39,0.04940869]
[1749194403742,0.04923577,147.41,147.4,6.781]
[1749194404141,0.04923577,147.41,147.39,0.04940869]
[1749194404841,0.04923577,147.41,147.39,6.83080869]
[1749194405647,0.04923577,147.41,147.39,0.04940869]
[1749194409046,4.86991354,147.41,147.39,0.04940869]
[1749194409852,11.65061354,147.41,147.39,0.04940869]
[1749194410951,6.781,147.4,147.39,0.04940869]
[1749194412250,33.66,147.4,147.33,33.66]
[1749194412551,4.82067777,147.39,147.33,33.66]
[1749194413141,4.86790888,147.37,147.35,0.04719813]
[1749194413552,33.66,147.36,147.29,38.48067777]
[1749194413757,38.48067777,147.36,147.29,38.48067777]
[1749194413948,45.26387777,147.36,147.29,38.48067777]
[1749194414545,0.04992165,147.34,147.32,6.7847]
[1749194415047,0.04992165,147.34,147.33,6.7843]
[1749194418252,33.66,147.39,147.31,0.02607279]
[1749194418548,33.66,147.42,147.37,4.82067777]
[1749194418749,33.66,147.42,147.39,6.7812]
[1749194419054,33.66,147.42,147.37,4.82067777]
[1749194419255,0.04661178,147.41,147.38,0.04983908]
[1749194419658,0.04661178,147.41,147.4,6.7807]
[1749194420053,0.04661178,147.41,147.38,0.04983908]
[1749194420454,0.04661178,147.41,147.39,6.7813]
[1749194421554,0.04661178,147.41,147.4,6.781]
[1749194436677,0.04661178,147.41,147.4,11.60167777]
[1749194442285,0.04661178,147.41,147.39,6.7813]
[1749194444590,0.04661178,147.41,147.38,6.83163908]
[1749194444791,6.82731178,147.41,147.38,6.83163908]
[1749194445591,0.04661178,147.41,147.38,6.83163908]
[1749194447592,0.04661178,147.41,147.39,6.7815]
[1749194449391,0.04661178,147.41,147.38,6.83163908]
[1749194450696,0.04661178,147.41,147.39,6.7815]
[1749194456901,0.04661178,147.41,147.4,6.781]
[1749194457900,0.04661178,147.41,147.4,11.61119403]
[1749194458595,33.66,147.45,147.42,6.7798]
[1749194459497,33.70836815,147.45,147.42,6.82742167]
[1749194460300,0.04836815,147.45,147.42,0.04762167]
[1749194461201,0.04836815,147.45,147.43,6.7793]
[1749194461703,0.04836815,147.45,147.42,4.8778157]
[1749194462095,0.04836815,147.45,147.44,6.7792]
[1749194465194,0.04836815,147.45,147.42,0.04762167]
[1749194465908,10.52565096,147.45,147.42,0.04762167]
[1749194466100,4.87856218,147.45,147.42,0.04762167]
[1749194466305,4.49199098,147.44,147.42,0.04762167]
[1749194466499,6.7794,147.44,147.42,0.04762167]
[1749194468703,38.49856218,147.45,147.42,0.04762167]
[1749194468905,4.49915131,147.44,147.42,0.04762167]
[1749194469106,45.27746218,147.45,147.42,0.04762167]
[1749194469308,11.28078616,147.44,147.42,0.04762167]
[1749194469609,38.49856218,147.45,147.42,0.04762167]
[1749194469808,4.50112956,147.44,147.42,0.04762167]
[1749194470001,38.49856218,147.45,147.42,0.04762167]
[1749194470198,4.50191271,147.44,147.42,0.04762167]
[1749194470496,33.66836815,147.45,147.42,0.04762167]
[1749194471307,4.5020115,147.44,147.42,0.04762167]
[1749194471509,33.66836815,147.45,147.42,6.82742167]
[1749194471807,0.04836815,147.45,147.42,38.4978157]
[1749194472106,0.04836815,147.45,147.44,11.60939403]
[1749194473312,0.04836815,147.45,147.44,6.7792]
[1749194473505,0.04836815,147.45,147.42,33.66762167]
[1749194474708,0.04836815,147.45,147.43,6.7796]
[1749194475306,6.82706815,147.45,147.42,40.44762167]
[1749194475504,6.82706815,147.45,147.42,6.82762167]
[1749194476602,4.87856218,147.45,147.42,0.04762167]
[1749194476799,4.48036927,147.44,147.42,0.04762167]
[1749194477005,4.83019403,147.43,147.36,38.45019403]
[1749194477804,11.61109403,147.41,147.36,33.62]
[1749194478001,0.04806408,147.4,147.37,0.04987127]
[1749194478416,0.04806408,147.4,147.37,6.83197127]
[1749194479209,6.82906408,147.4,147.37,0.04987127]
[1749194480108,6.82906408,147.4,147.37,6.83227127]
[1749194480808,4.83019403,147.39,147.37,0.04987127]
[1749194481410,11.61179403,147.39,147.37,0.04987127]
[1749194481806,0.04806408,147.4,147.37,0.04987127]
[1749194482011,4.54052398,147.4,147.37,0.04987127]
[1749194482214,0.04806408,147.4,147.37,0.04987127]
[1749194482413,6.82916408,147.4,147.37,0.04987127]
[1749194483915,6.7816,147.39,147.37,0.04987127]
[1749194484114,0.04806408,147.4,147.37,0.04987127]
[1749194484716,6.82936408,147.4,147.37,0.04987127]
[1749194485015,0.04806408,147.4,147.37,0.04987127]
[1749194485214,6.7818,147.39,147.37,0.04987127]
[1749194485411,0.04806408,147.4,147.37,0.04987127]
[1749194485814,0.04806408,147.4,147.37,6.83207127]
[1749194486815,6.82916408,147.4,147.37,0.04987127]
[1749194488418,6.7815,147.39,147.37,0.04987127]
[1749194489213,6.7819,147.38,147.37,0.04987127]
[1749194490321,6.7819,147.38,147.3,33.62]
[1749194490322,6.7829,147.36,147.3,33.62]
[1749194490519,11.61309403,147.36,147.32,6.7845]
[1749194491116,0.04534623,147.35,147.33,0.02511328]
[1749194492420,6.82884623,147.35,147.33,0.02511328]
[1749194495015,0.04534623,147.35,147.33,0.02511328]
[1749194496817,11.61399403,147.34,147.33,0.02511328]
[1749194497022,11.61399403,147.34,147.28,95.7471886]
[1749194497322,11.61399403,147.34,147.3,6.7854]
[1749194497522,6.7843,147.33,147.3,6.7854]
[1749194498017,6.83091359,147.33,147.3,6.7854]
[1749194498217,4.83019403,147.32,147.27,33.62]
[1749194498812,6.7852,147.31,147.28,6.7863]
[1749194499218,4.83019403,147.32,147.28,6.7863]
[1749194499514,11.61509403,147.32,147.28,6.7863]
[1749194499720,11.61509403,147.32,147.29,6.786]
[1749194500221,4.83019403,147.32,147.3,6.7856]
[1749194502318,0.04661359,147.33,147.31,6.7852]
[1749194503022,0.04661359,147.33,147.3,6.7854]
[1749194503223,6.83081359,147.33,147.3,6.7854]
[1749194504324,6.83081359,147.33,147.29,6.786]
[1749194504722,6.83081359,147.33,147.27,33.62]
[1749194504723,11.66100762,147.33,147.27,33.62]
[1749194505025,11.66100762,147.33,147.29,6.7858]
[1749194505221,6.7849,147.32,147.29,6.7858]
[1749194505521,4.87680762,147.33,147.29,6.7858]
[1749194505728,11.66120762,147.33,147.29,6.7858]
[1749194505925,4.87680762,147.33,147.29,6.7858]
[1749194506125,6.7851,147.32,147.28,6.7864]
[1749194506425,4.87680762,147.33,147.28,6.7864]
[1749194506826,6.7848,147.32,147.29,6.7861]
[1749194508332,11.66120762,147.33,147.29,6.7861]
[1749194509329,11.66120762,147.33,147.3,6.7856]
[1749194511528,11.66120762,147.33,147.29,6.7859]
[1749194512731,6.7848,147.32,147.29,6.7859]
[1749194514534,6.7852,147.31,147.28,6.7864]
[1749194514931,4.83019403,147.29,147.25,4.433]
[1749194515132,0.04298264,147.28,147.26,6.7872]
[1749194515435,0.04298264,147.28,147.25,4.433]
[1749194515836,0.04298264,147.28,147.27,6.787]
[1749194521532,0.04298264,147.28,147.25,4.433]
[1749194522736,0.04298264,147.28,147.24,33.64]
[1749194523037,11.61749403,147.27,147.23,6.7885]
[1749194523840,6.7875,147.26,147.23,6.7885]
[1749194524934,4.83019403,147.25,147.21,40.4294]
[1749194525136,0.04472518,147.24,147.21,6.7894]
[1749194525741,6.83332518,147.24,147.21,6.7894]
[1749194526341,0.04472518,147.24,147.21,6.7894]
[1749194526838,0.04472518,147.24,147.19,6.6808]
[1749194527335,0.04472518,147.24,147.22,6.7891]
[1749194528438,0.04472518,147.24,147.23,6.7888]
[1749194533246,38.47019403,147.31,147.23,38.47019403]
[1749194533545,38.47019403,147.31,147.24,2.1012]
[1749194533747,4.83019403,147.29,147.27,6.7867]
[1749194533949,4.83019403,147.29,147.24,2.1012]
[1749194534356,0.04418293,147.28,147.25,0.04472518]
[1749194534551,0.04418293,147.28,147.27,6.787]
[1749194536057,0.04418293,147.28,147.25,0.04472518]
[1749194536757,0.04418293,147.28,147.27,6.787]
[1749194540663,0.04418293,147.28,147.26,6.7873]
[1749194540861,0.04418293,147.28,147.25,2.37322518]
[1749194541755,0.04418293,147.28,147.27,6.787]
[1749194544467,0.04418293,147.28,147.26,6.7873]
[1749194550369,0.04418293,147.28,147.27,6.787]
[1749194553469,0.04418293,147.28,147.26,6.7874]
[1749194553872,0.04418293,147.28,147.25,0.04472518]
[1749194554674,0.04418293,147.28,147.27,6.787]
[1749194557474,0.04418293,147.28,147.27,11.61719403]
[1749194558976,0.04418293,147.28,147.27,6.787]
[1749194559179,0.04418293,147.28,147.27,11.61719403]
[1749194561673,0.04418293,147.28,147.27,6.787]
[1749194563280,6.7845,147.33,147.29,6.7858]
[1749194564374,0.04970068,147.32,147.3,6.83007109]
[1749194564679,0.04970068,147.32,147.3,0.04457109]
[1749194565169,6.7851,147.31,147.3,0.04457109]
[1749194566680,4.87989471,147.32,147.3,0.04457109]
[1749194566681,0.04970068,147.32,147.3,0.04457109]
[1749194568282,0.04970068,147.32,147.31,6.7851]
[1749194570483,0.04970068,147.32,147.3,0.04457109]
[1749194570484,33.66,147.37,147.3,4.87476512]
[1749194570686,4.83019403,147.38,147.32,4.83019403]
[1749194570878,5.61046693,147.39,147.32,38.49019403]
[1749194571078,52.30147403,147.4,147.35,6.783]
[1749194571374,6.7817,147.39,147.35,6.783]
[1749194571574,0.05070526,147.38,147.36,0.05073082]
[1749194573383,6.7824,147.37,147.36,0.05073082]
[1749194574184,11.61259403,147.37,147.36,0.05073082]
[1749194580984,4.88089929,147.38,147.36,0.05073082]
[1749194581187,0.05070526,147.38,147.36,0.05073082]
[1749194581383,13.81128,147.4,147.37,6.7824]
[1749194581585,13.81128,147.4,147.38,4.83019403]
[1749194581978,2.1089,147.45,147.38,4.83019403]
[1749194582185,4.83019403,147.47,147.4,4.83019403]
[1749194582489,0.04922674,147.45,147.44,6.7792]
[1749194582689,0.04670388,147.46,147.43,0.04876553]
[1749194583190,0.04670388,147.46,147.44,6.7792]
[1749194588388,0.04670388,147.46,147.43,6.82826553]
[1749194589694,0.04670388,147.46,147.44,6.7791]
[1749194590491,0.04670388,147.46,147.45,6.7787]
[1749194590895,0.04670388,147.46,147.44,6.779]
[1749194591388,0.04670388,147.46,147.43,0.04876553]
[1749194591793,0.04670388,147.46,147.43,6.82796553]
[1749194592093,0.04670388,147.46,147.43,0.04876553]
[1749194593294,0.04670388,147.46,147.44,6.7789]
[1749194593699,0.04670388,147.46,147.43,0.04876553]
[1749194593898,0.04670388,147.46,147.45,6.7787]
[1749194594095,4.83019403,147.53,147.44,4.83019403]
[1749194594291,11.60529403,147.53,147.47,4.83019403]
[1749194594492,4.83019403,147.53,147.47,38.57019403]
[1749194594693,6.776,147.51,147.47,33.74]
[1749194594897,4.83019403,147.53,147.47,33.74]
[1749194595198,0.05022794,147.51,147.49,0.04851314]
[1749194595797,6.82622794,147.51,147.49,0.04851314]
[1749194596101,0.05022794,147.51,147.49,0.04851314]
[1749194598903,6.82622794,147.51,147.49,0.04851314]
[1749194601404,0.05022794,147.51,147.49,0.04851314]
[1749194602507,6.82632794,147.51,147.49,0.04851314]
[1749194602704,0.05022794,147.51,147.49,0.04851314]
[1749194603712,6.7764,147.5,147.49,0.04851314]
[1749194605912,6.82632794,147.51,147.49,0.04851314]
[1749194607411,0.05022794,147.51,147.49,4.87870717]
[1749194609011,0.05022794,147.51,147.49,0.04851314]
[1749194609509,6.7778,147.47,147.45,33.72]
[1749194609810,4.83019403,147.5,147.42,42.89779403]
[1749194610011,6.7766,147.5,147.46,6.7782]
[1749194610310,38.55019403,147.51,147.46,6.7782]
[1749194610504,6.7772,147.49,147.47,0.04938144]
[1749194611106,6.82678882,147.5,147.47,0.04938144]
[1749194611507,0.05028882,147.5,147.47,0.04938144]
[1749194612109,6.82668882,147.5,147.47,6.82708144]
[1749194613612,0.05028882,147.5,147.47,6.82708144]
[1749194613811,0.05028882,147.5,147.47,0.04938144]
[1749194614005,0.05028882,147.5,147.48,4.83019403]
[1749194614209,0.05028882,147.5,147.49,6.7769]
[1749194624324,0.05028882,147.5,147.49,11.60709403]
[1749194624520,33.72,147.55,147.53,6.775]
[1749194624728,5.6735267,147.54,147.53,6.775]
[1749194625722,33.77102988,147.55,147.53,6.775]
[1749194625723,0.05102988,147.55,147.53,6.775]
[1749194626122,5.72448658,147.55,147.53,6.775]
[1749194626322,5.6734567,147.54,147.53,6.775]
[1749194626722,0.05102988,147.55,147.54,6.7746]
[1749194626923,5.64965384,147.55,147.54,6.7746]
[1749194627124,0.05102988,147.55,147.54,6.7746]
[1749194627324,5.64965384,147.55,147.54,6.7746]
[1749194627525,0.05102988,147.55,147.54,6.7746]
[1749194627828,8.38540915,147.55,147.54,6.7746]
[1749194628028,2.78711794,147.55,147.54,6.7746]
[1749194628224,5.64965384,147.55,147.54,6.7746]
[1749194628430,2.78711147,147.55,147.54,6.7746]
[1749194628633,5.64965384,147.55,147.54,6.7746]
[1749194628930,2.78708373,147.55,147.54,6.7746]
[1749194629131,2.78708939,147.55,147.54,6.7746]
[1749194629330,2.78695457,147.55,147.54,6.7746]
[1749194629728,2.78712327,147.55,147.54,6.7746]
[1749194629928,2.78734282,147.55,147.54,6.7746]
[1749194630428,0.05102988,147.55,147.54,6.7746]
[1749194631019,8.41890276,147.64,147.59,6.7719]
[1749194631220,8.3330606,147.63,147.59,6.7719]
[1749194631424,2.73499441,147.62,147.59,6.7719]
[1749194631731,2.73499441,147.61,147.59,6.7719]
[1749194632028,5.59806619,147.63,147.59,6.7719]
[1749194632230,0.0484965,147.61,147.59,6.82318752]
[1749194632623,0.0484965,147.61,147.59,0.05128752]
[1749194632823,2.7413872,147.6,147.59,0.05128752]
[1749194633023,2.7414347,147.6,147.59,0.05128752]
[1749194633230,0.0484965,147.61,147.59,0.05128752]
[1749194633231,0.0484965,147.61,147.59,6.82328752]
[1749194634332,0.0484965,147.61,147.6,6.7718]